[Event "Marshall Masters 44"]
[Site "New York"]
[Date "2024.12.18"]
[Round "1.1"]
[White "Tang, Andrew"]
[Black "Smith, Bryan"]
[Result "1-0"]
[ECO "D70"]
[WhiteElo "2527"]
[BlackElo "2388"]
[Annotator "TA"]
[PlyCount "49"]
[EventDate "2024.12.17"]
[EventType "swiss"]
[EventCountry "USA"]
[SourceTitle "playchess.com"]
[Source "ChessBase"]
[SourceQuality "1"]
[TimeMode "Bronstein"]
[TimeControl "1500+5"]

{[%evp 13,49,32,41,40,47,43,56,52,84,85,82,87,83,27,20,27,107,73,147,154,144,134,180,113,109,94,114,100,274,178,532,524,522,520,535,522,1162,1171]} 1. d4 {[%emt 0:00:05]} Nf6 {[%emt 0:00:46]} 2. c4 {[%emt 0:00:05]} g6 {[%emt 0:00:05]} 3. f3 {[%emt 0:00:05]} d5 {[%emt 0:00:05]} 4. cxd5 {[%emt 0:00:05]} Nxd5 {[%emt 0:00:05]} 5. e4 {[%emt 0:00:05]} Nb6 {[%emt 0:00:05]} 6. Nc3 {[%emt 0:00:05]} Bg7 {[%emt 0:00:05]} 7. Be3 {[%emt 0:00:05]} Nc6 {[%emt 0:00:05]} 8. d5 {[%emt 0:00:05]} Ne5 {[%emt 0:00:44]} 9. f4 {[%emt 0:00:05]} Ng4 $1 {[%emt 0:00:42]} 10. Bb5+ $1 {[%emt 0:00:05]} Kf8 {[%emt 0:00:42]} 11. Bc5 {[%emt 0:02:41]} c6 {[%emt 0:00:52] Prevents a4.} 12. dxc6 {[%emt 0:00:22]} Qc7 {[%emt 0:00:05]} 13. h3 {[%emt 0:02:22] White is more active.} ({White should play} 13. Be2 $16 {and Nb5 should not be overlooked} Bxc3+ 14. bxc3) 13... bxc6 $11 {[%emt 0:02:09]} 14. Bd3 $1 {[%emt 0:02:27]} Nf6 {[%emt 0:00:59]} (14... Nd7 $11 15. Ba3 Bxc3+ (15... Ne3 16. Qf3 $14) 16. bxc3 Ngf6) 15. Qf3 {[%emt 0:00:45]} Be6 {[%emt 0:00:37]} ({Better is} 15... g5) 16. Nge2 $16 {[%emt 0:00:07]} Nfd7 {[%emt 0:01:15]} 17. Bf2 {[%emt 0:00:34]} Bc4 {[%emt 0:00:58]} (17... Rd8 $16 18. b3 Nf6) 18. Bc2 {[%emt 0:00:27]} (18. Bxc4 $18 Nxc4 19. b3) 18... Bxe2 {[%emt 0:00:18]} 19. Nxe2 {[%emt 0:02:55]} Bxb2 {[%emt 0:00:07]} 20. Rd1 {[%emt 0:00:12]} Nc4 $2 {[%emt 0:01:37]} (20... e6 $16 {was worth a try.}) 21. O-O {[%emt 0:00:07]} e5 $2 {[%emt 0:01:04]} (21... Rb8 22. Qd3 Ncb6) 22. Bb3 $18 {[%emt 0:00:51] A strong pair of Bishops.} Na5 {[%emt 0:01:25]} 23. f5 {[%emt 0:01:24] Threatening mate with fxg6.} Nxb3 {[%emt 0:00:27]} 24. Qxb3 {[%emt 0:00:05]} Rb8 {[%emt 0:00:05] [#]} 25. Rxd7 $1 {[%emt 0:00:07][%mdl 512]} 1-0

[Event "Marshall Masters 44"]
[Site "New York"]
[Date "2024.12.18"]
[Round "1.2"]
[White "Bonin, Jay"]
[Black "Lenderman, Aleksandr"]
[Result "0-1"]
[ECO "D03"]
[WhiteElo "2102"]
[BlackElo "2480"]
[Annotator "TA"]
[PlyCount "54"]
[EventDate "2024.12.17"]
[EventType "swiss"]
[EventCountry "USA"]
[SourceTitle "playchess.com"]
[Source "ChessBase"]
[SourceQuality "1"]
[TimeMode "Bronstein"]
[TimeControl "1500+5"]

{[%evp 9,54,12,12,11,20,14,18,0,10,0,0,0,0,0,3,0,8,0,-2,0,0,-15,-4,-17,-14,-7,0,-15,-10,-12,-8,-50,-74,-91,-95,-91,-64,-356,-368,-500,-485,-607,-613,-697,-694,-831,-819]} 1. d4 {[%emt 0:00:05]} d5 {[%emt 0:00:10]} 2. c3 {[%emt 0:00:09]} Nf6 {[%emt 0:01:13]} 3. Bg5 {[%emt 0:00:09]} Ne4 {[%emt 0:01:08]} 4. Bf4 {[%emt 0:00:09]} c6 {[%emt 0:03:47]} 5. Nf3 {[%emt 0:01:41]} Bf5 {[%emt 0:00:11]} 6. Qb3 {[%emt 0:00:15]} Qb6 {[%emt 0:00:05]} 7. Nbd2 {[%emt 0:00:27]} Nd7 {[%emt 0:00:06]} 8. e3 {[%emt 0:00:20]} h6 {[%emt 0:00:05]} 9. h3 {[%emt 0:00:32]} e6 {[%emt 0:00:16]} 10. Nxe4 {[%emt 0:00:15]} Bxe4 {[%emt 0:00:05]} 11. Nd2 {[%emt 0:00:08]} Bh7 {[%emt 0:00:07]} 12. a4 {[%emt 0:00:48][%cal Ba2a4,Ba4a5][%mdl 32]} Be7 {[%emt 0:01:03]} 13. a5 {[%emt 0:00:30]} Qxb3 {[%emt 0:00:05]} 14. Nxb3 {[%emt 0:00:05]} a6 {[%emt 0:00:06]} 15. Kd2 {[%emt 0:00:20]} Rc8 {[%emt 0:00:27]} 16. Bd3 {[%emt 0:00:28]} Bxd3 {[%emt 0:00:05]} 17. Kxd3 {[%emt 0:00:05]} c5 {[%emt 0:00:05]} 18. Nd2 {[%emt 0:01:04]} O-O {[%emt 0:00:31]} 19. Nf3 {[%emt 0:01:38]} f6 {[%emt 0:00:15]} 20. b3 {[%emt 0:02:25]} cxd4 {[%emt 0:02:39]} 21. exd4 {[%emt 0:00:29] [#]} e5 $1 {[%emt 0:00:05]} 22. Rhe1 {[%emt 0:02:31]} Bd6 {[%emt 0:00:15] ...e4+ would now be deadly.} 23. dxe5 $2 {[%emt 0:01:39][%mdl 8192]} (23. Bh2 $15) 23... fxe5 $19 {[%emt 0:00:05]} 24. Nxe5 {[%emt 0:00:07]} Nc5+ {[%emt 0:00:07]} (24... Rxf4 25. Nxd7 Rd8 26. Nb6 $11) 25. Ke3 {[%emt 0:00:08]} Nxb3 {[%emt 0:00:30]} 26. Rad1 {[%emt 0:00:48]} Rxc3+ {[%emt 0:00:32]} 27. Rd3 {[%emt 0:00:06]} d4+ {[%emt 0:00:58]} 0-1

[Event "Marshall Masters 44"]
[Site "New York"]
[Date "2024.12.18"]
[Round "1.3"]
[White "Zeltsan, Joseph"]
[Black "Mullodzhanov, Nathaniel"]
[Result "1-0"]
[ECO "E61"]
[WhiteElo "2405"]
[BlackElo "1927"]
[Annotator "TA"]
[PlyCount "43"]
[EventDate "2024.12.17"]
[EventType "swiss"]
[EventCountry "USA"]
[SourceTitle "playchess.com"]
[Source "ChessBase"]
[SourceQuality "1"]
[TimeMode "Bronstein"]
[TimeControl "1500+5"]

{[%evp 12,43,12,-16,27,10,51,29,45,51,57,52,78,67,87,55,31,33,39,35,29,44,35,55,51,6,1450,836,883,890,937,922,908,770]} 1. d4 {[%emt 0:00:44]} Nf6 {[%emt 0:00:05]} 2. c4 {[%emt 0:00:10]} g6 {[%emt 0:00:05]} 3. Nc3 {[%emt 0:00:18]} Bg7 {[%emt 0:00:05]} 4. Nf3 {[%emt 0:00:11]} d6 {[%emt 0:00:06]} 5. Bf4 {[%emt 0:00:10]} O-O {[%emt 0:00:10]} 6. e3 {[%emt 0:00:46]} c5 {[%emt 0:00:36]} 7. Be2 {[%emt 0:02:31]} cxd4 {[%emt 0:04:52]} 8. exd4 {[%emt 0:00:05]} b6 {[%emt 0:00:16]} 9. O-O {[%emt 0:00:17]} Bb7 {[%emt 0:00:43]} 10. d5 {[%emt 0:01:16]} Nbd7 {[%emt 0:01:09][%cal Bb8d7,Bd7c5,Bc5e6][%mdl 32]} 11. Nd4 {[%emt 0:01:24]} Nc5 {[%emt 0:03:18]} 12. Bf3 {[%emt 0:04:42] White is more active.} Nfd7 {[%emt 0:02:17]} 13. Rc1 {[%emt 0:02:41]} Bxd4 {[%emt 0:01:09]} 14. Qxd4 {[%emt 0:00:19] And now Bh6 would win.} e5 $1 {[%emt 0:00:05]} 15. dxe6 {[%emt 0:00:05]} Nxe6 {[%emt 0:00:10]} 16. Qxd6 {[%emt 0:01:19]} (16. Qd1 {simplifies} Bxf3 17. Qxf3 Ne5 18. Bxe5 dxe5 19. Nd5) 16... Bxf3 {[%emt 0:00:12]} 17. gxf3 {[%emt 0:00:05]} Ndc5 {[%emt 0:02:15]} 18. Qxd8 {[%emt 0:00:46]} Rc8 $4 {[%mdl 8192]} (18... Rfxd8 $11 19. Be3 Nd3) 19. Qxf8+ Rxf8 {[%emt 0:00:30]} 20. Bh6 {[%emt 0:00:28]} Rd8 {[%emt 0:00:07]} 21. Nd5 {[%emt 0:00:05]} Kh8 {[%emt 0:00:37]} 22. Nf6 {[%emt 0:01:09]} 1-0

[Event "Marshall Masters 44"]
[Site "New York"]
[Date "2024.12.18"]
[Round "1.4"]
[White "Hinson, Miles"]
[Black "Lu, Maximillian"]
[Result "0-1"]
[ECO "B15"]
[WhiteElo "1980"]
[BlackElo "2404"]
[Annotator "TA"]
[PlyCount "106"]
[EventDate "2024.12.17"]
[EventType "swiss"]
[EventCountry "USA"]
[SourceTitle "playchess.com"]
[Source "ChessBase"]
[SourceQuality "1"]
[TimeMode "Bronstein"]
[TimeControl "1500+5"]

{[%evp 12,106,61,33,26,29,14,20,23,26,47,36,43,43,49,29,50,32,22,-24,-14,-19,-17,-30,28,21,33,1,8,-10,0,0,0,0,0,10,10,-98,-101,-90,-93,-97,-76,-79,-77,-94,-90,-113,-141,-168,-172,-177,-161,-200,-143,-248,-247,-310,-304,-307,-277,-308,-280,-421,-405,-470,-332,-335,-316,-335,-328,-306,-235,-29963,-29964,-29962,-29963,-29957,-29961,-29950,-29953,-6140,-6498,-29979,-29980,-29976,-29975,-29987,-29988,-29988,-29989,-29989,-29989,-29989,-29990,-29998,-29999]} 1. e4 {[%emt 0:00:05]} c6 {[%emt 0:00:05]} 2. d4 {[%emt 0:00:05]} g6 {[%emt 0:00:05]} 3. Nc3 {[%emt 0:00:32]} Bg7 {[%emt 0:00:05]} 4. f4 {[%emt 0:00:12]} d5 {[%emt 0:00:05]} 5. e5 {[%emt 0:00:05]} Nh6 {[%emt 0:00:09]} 6. Nf3 {[%emt 0:00:16]} Bg4 {[%emt 0:00:05]} 7. Be3 {[%emt 0:00:25]} Qb6 {[%emt 0:01:00]} 8. Rb1 {[%emt 0:01:23]} Nf5 {[%emt 0:00:13]} 9. Bf2 {[%emt 0:00:06]} e6 {[%emt 0:02:20]} 10. Be2 {[%emt 0:00:37]} Bh6 {[%emt 0:00:47]} 11. Qd2 {[%emt 0:01:08]} Nd7 {[%emt 0:01:08]} 12. h3 {[%emt 0:00:57]} Bxf3 {[%emt 0:00:05]} 13. Bxf3 {[%emt 0:00:05]} c5 {[%emt 0:00:59]} 14. dxc5 {[%emt 0:02:17]} Qb4 {[%emt 0:00:10]} 15. Ne2 {[%emt 0:00:48]} (15. g3 {deserves consideration.}) 15... Qxd2+ $11 {[%emt 0:00:08]} 16. Kxd2 {[%emt 0:00:05]} Nxe5 {[%emt 0:00:07]} 17. Bg4 {[%emt 0:01:03]} Nc4+ {[%emt 0:01:04] A dynamic duo of knights.} ({Better is} 17... Ne7) 18. Kd3 {[%emt 0:01:22]} Bg7 {[%emt 0:02:55]} 19. Bxf5 {[%emt 0:00:40]} (19. c3 {with more complications.} h5 20. Bf3 h4 21. a4) 19... gxf5 {[%emt 0:00:05]} 20. Bd4 {[%emt 0:00:39]} Rg8 {[%emt 0:00:05]} 21. g4 $1 {[%emt 0:01:46]} Bxd4 {[%emt 0:01:05]} 22. Nxd4 {[%emt 0:00:37]} fxg4 {[%emt 0:00:19]} 23. hxg4 {[%emt 0:00:27]} Rxg4 {[%emt 0:00:24]} 24. Rxh7 {[%emt 0:00:27]} (24. b3 $1 $11 {keeps the balance.} Na5 25. Rxh7) 24... Rg3+ {[%emt 0:01:21]} (24... Rxf4 $2 25. Rh8+ Kd7 26. Rxa8 $18) 25. Ke2 {[%emt 0:00:17] Hoping for Rh8+.} Ke7 $1 {[%emt 0:00:07]} 26. b3 {[%emt 0:01:45] [#]} Rg2+ $1 {[%emt 0:01:29]} 27. Kd3 {[%emt 0:00:53] [#]} Nd2 $1 {[%emt 0:01:19]} 28. Re1 {[%emt 0:01:47]} Ne4 $36 {[%emt 0:00:06][%mdl 2048] Black is on the roll.} 29. Nf3 {[%emt 0:01:33]} Rag8 {[%emt 0:03:08] Black is more active.} (29... Nxc5+ $2 30. Kd4 Ne4 (30... Rxc2 31. Ne5 $17) 31. c4 $17) 30. Ng5 {[%emt 0:01:44]} Nxg5 {[%emt 0:00:55]} (30... Nxc5+ 31. Ke3 $17) 31. fxg5 {[%emt 0:00:05]} R8xg5 $19 {[%emt 0:00:05][%mdl 4096] Endgame KRR-KRR. Black is a pawn up.} 32. Kc3 {[%emt 0:00:05]} d4+ {[%emt 0:01:38]} 33. Kxd4 {[%emt 0:00:22]} (33. Kd3 $17) 33... Rd5+ {[%emt 0:00:05]} ({Don't do} 33... Rxc2 34. Rf1 Rd5+ (34... Rxa2 $2 {perishes.} 35. Rfxf7+ Ke8 36. Rxb7 $18) 35. Ke3) 34. Kc4 {[%emt 0:00:05]} Rxc2+ {[%emt 0:00:05]} 35. Kb4 {[%emt 0:00:05]} Rcxc5 {[%emt 0:00:36]} 36. Rg1 Rf5 {[%emt 0:00:22] ...a5+ would now be deadly.} 37. Rg8 {[%emt 0:00:16]} (37. Rg2 $142) 37... a5+ {[%emt 0:00:08]} 38. Ka3 {[%emt 0:00:05]} b5 {[%emt 0:00:19]} 39. Rh2 {[%emt 0:00:05] Inhibits Rf2.} Rf1 {[%emt 0:00:30]} 40. Ra8 {[%emt 0:00:11]} b4+ {[%emt 0:00:06]} 41. Ka4 {[%emt 0:00:05]} Rff5 {[%emt 0:00:05]} 42. Rh6 $2 {[%emt 0:00:14]} (42. Ra7+ $19 Kf8 43. Rb2) 42... Rc2 {[%emt 0:00:20][%cal Rc2a2]} 43. Ra7+ {[%emt 0:00:05]} Kd6 {[%emt 0:00:48][%cal Rc2a2]} 44. Ra6+ {[%emt 0:00:05]} Kc7 {[%emt 0:00:17][%cal Rc2a2]} 45. a3 {[%emt 0:00:05]} Ra2 {[%emt 0:00:12][%csl Gb4][%cal Ra2a3]} 46. Ra7+ {[%emt 0:00:14]} Kb6 {[%emt 0:00:39][%csl Gb4][%cal Ra2a3]} 47. Rxe6+ {[%emt 0:00:17]} fxe6 {[%emt 0:00:11][%csl Gb4][%cal Ra2a3]} 48. Ra6+ {[%emt 0:00:05]} Kc5 {[%emt 0:00:05][%csl Gb4][%cal Ra2a3]} 49. Rc6+ {[%emt 0:00:05]} Kd4 {[%emt 0:00:19][%csl Gb4][%cal Ra2a3]} 50. Rc4+ {[%emt 0:00:05]} Ke3 {[%emt 0:00:05][%csl Gb4][%cal Ra2a3]} 51. Re4+ {[%emt 0:00:05]} Kf3 {[%emt 0:00:05][%csl Gb4][%cal Ra2a3]} 52. Re3+ {[%emt 0:00:05]} Kf2 {[%emt 0:00:07][%csl Gb4][%cal Ra2a3]} 53. Re2+ {[%emt 0:00:05]} Rxe2 {[%emt 0:00:05]} 0-1

[Event "Marshall Masters 44"]
[Site "New York"]
[Date "2024.12.18"]
[Round "1.5"]
[White "Putnam, Liam"]
[Black "Kozower, Ethan"]
[Result "1-0"]
[ECO "E17"]
[WhiteElo "2403"]
[BlackElo "1983"]
[Annotator "TA"]
[PlyCount "85"]
[EventDate "2024.12.17"]
[EventType "swiss"]
[EventCountry "USA"]
[SourceTitle "playchess.com"]
[Source "ChessBase"]
[SourceQuality "1"]
[TimeMode "Bronstein"]
[TimeControl "1500+5"]

{[%evp 13,85,14,32,25,25,29,67,12,33,18,55,51,64,50,56,47,100,100,117,70,73,67,258,139,294,33,164,33,237,247,242,113,107,114,102,108,113,104,309,264,553,554,517,292,278,141,216,257,760,756,772,756,1129,1187,2091,1848,2262,2247,2598,2583,2544,2562,1997,997,1841,977,6403,5074,5385,1318,1273,1214,29984,29985]} 1. d4 {[%emt 0:00:59]} Nf6 {[%emt 0:00:05]} 2. c4 {[%emt 0:00:06]} e6 {[%emt 0:00:05]} 3. Nf3 {[%emt 0:00:11]} b6 {[%emt 0:00:05]} 4. g3 {[%emt 0:00:19]} Bb7 {[%emt 0:00:31]} 5. Bg2 {[%emt 0:00:05]} Be7 {[%emt 0:00:05]} 6. O-O {[%emt 0:00:06]} O-O {[%emt 0:00:05]} 7. Re1 {[%emt 0:00:20]} Qc8 {[%emt 0:00:57]} 8. Nc3 {[%emt 0:01:02]} Ne4 {[%emt 0:00:13]} 9. Bd2 {[%emt 0:00:05]} Rd8 {[%emt 0:02:34]} 10. Rc1 {[%emt 0:02:03]} (10. d5 $14 Nxd2 11. Qxd2 (11. Nxd2 a5 $14)) 10... d6 {[%emt 0:02:55]} 11. d5 {[%emt 0:00:41]} Nxc3 {[%emt 0:01:04]} 12. Bxc3 {[%emt 0:00:39]} e5 {[%emt 0:03:12]} 13. b4 {[%emt 0:00:07]} c6 {[%emt 0:01:45]} 14. e4 {[%emt 0:00:50][%cal Oc4c5]} Qd7 {[%emt 0:01:11] [#]} (14... Nd7 $14) 15. c5 $1 $16 {[%emt 0:02:05] cxd6 would now be deadly.} f6 {[%emt 0:01:15]} (15... Qe8 16. b5) 16. dxc6 {[%emt 0:01:20] White is more active.} (16. b5 $16 cxb5 17. c6 Nxc6 18. dxc6 Bxc6 19. Qb3+ Kh8 20. Bb2) 16... Bxc6 $14 {[%emt 0:00:35]} 17. Qb3+ {[%emt 0:04:35]} ({Don't play} 17. b5 Bxb5 18. cxb6 (18. Qd5+ Kh8 $17) 18... Na6 $11) 17... Kf8 $2 {[%emt 0:00:06]} (17... Kh8 $14) 18. cxd6 {[%emt 0:01:05]} (18. b5 $1 $18 Bb7 (18... Bxb5 $2 {perishes.} 19. cxd6 Bxd6 20. Bb4 $18) 19. c6 Nxc6 20. bxc6 Bxc6 21. Bb4) 18... Bxd6 $2 {[%emt 0:00:32]} (18... Qxd6 $16 {might work better.} 19. Bh3 a6) 19. Nh4 $2 {[%emt 0:01:09]} (19. b5 $18) 19... a5 {[%emt 0:01:33]} (19... Ba4 $1 $14 20. Qb2 Nc6) 20. Nf5 {[%emt 0:00:24]} (20. Red1 $1 $18) 20... Qf7 $2 {[%emt 0:00:45]} (20... Ba4 $1 $14 21. Qa3 b5) 21. Qb2 $18 {[%emt 0:00:30]} Be7 {[%emt 0:01:11]} 22. Bf1 {[%emt 0:02:04]} (22. f4 $1 $18 {[%cal Rf4e5] is the precise move to win.} Nd7 23. fxe5 axb4 24. Bxb4 Bc5+ 25. Bxc5+ bxc5 26. exf6 gxf6 27. Qc3 Rxa2 28. Qd3) 22... Bd7 $16 {[%emt 0:00:32]} 23. Nxe7 {[%emt 0:00:18]} Qxe7 {[%emt 0:00:05]} 24. Red1 {[%emt 0:00:59]} Nc6 {[%emt 0:00:47] [#]} 25. b5 $1 $36 {[%emt 0:00:05][%mdl 2048] White is really pushing.} Nb8 {[%emt 0:02:25]} (25... Bg4 $16 26. Rxd8+ Nxd8) 26. Bc4 {[%emt 0:00:05] Black must now prevent Qd2.} Be8 $2 {[%emt 0:00:31]} (26... Rc8 {keeps fighting.}) 27. Rxd8 $18 {[%emt 0:00:57]} Qxd8 {[%emt 0:00:05]} 28. Bd5 {[%emt 0:00:05]} Ra7 {[%emt 0:00:05] [#]} 29. Qb3 {[%emt 0:00:06]} ({White must play} 29. Qa3+ $1 $18 Re7 30. Bb2) 29... Nd7 {[%emt 0:00:08]} (29... Rc7 $16 {was called for.} 30. Bb2 Rxc1+ 31. Bxc1 g5 32. Qa3+ Qe7) 30. Bb2 {[%emt 0:00:05] Ba3+ is the strong threat.} Rc7 $2 {[%emt 0:00:32]} (30... g6 31. Ba3+ Kg7) 31. Ba3+ {[%emt 0:00:05] This pair of bishops is nice.} Nc5 {[%emt 0:00:17]} 32. Bxc5+ {[%emt 0:00:05]} Rxc5 {[%emt 0:00:28]} 33. Rxc5 {[%emt 0:00:05]} bxc5 {[%emt 0:00:05][%mdl 4096] Endgame. KQB-KQB} 34. b6 {[%emt 0:00:05][%cal Bb5b6,Bb6b7][%mdl 32]} a4 {[%emt 0:00:06]} 35. Qb2 {[%emt 0:00:13]} Ke7 {[%emt 0:00:56]} 36. b7 {[%emt 0:00:05]} Qb8 {[%emt 0:00:05]} 37. Qb6 {[%emt 0:00:05]} c4 {[%emt 0:00:07]} 38. Bxc4 {[%emt 0:00:10]} (38. Qc5+ $142 Kd8 39. Qa5+ (39. Qxc4 Bf7 $18) 39... Kd7 40. Qxa4+ Kd8 41. Qxc4) 38... Bd7 {[%emt 0:00:05]} 39. a3 {[%emt 0:00:08]} h6 {[%emt 0:00:05]} 40. Bd5 {[%emt 0:00:05] Qc5+ would kill now.} Be8 {[%emt 0:00:05]} 41. Qb4+ {[%emt 0:00:12]} Kd8 {[%emt 0:00:05]} 42. Qa5+ {[%emt 0:00:05]} Ke7 {[%emt 0:00:05]} 43. Qa8 {[%emt 0:00:05] Weighted Error Value: White=0.61/Black=1.06.  Loses game:     	---       	Black=3      Missed win:     	White=1     	---        Mistake:       	White=6     	Black=6      Inaccurate:     	White=1     	Black=2      OK:         	White=6     	Black=5      Best:        	White=2     	Black=1      Strong:       	White=1     	---} 1-0

[Event "Marshall Masters 44"]
[Site "New York"]
[Date "2024.12.18"]
[Round "2.1"]
[White "Katz, Alexander"]
[Black "Tang, Andrew"]
[Result "0-1"]
[ECO "C55"]
[WhiteElo "2405"]
[BlackElo "2527"]
[Annotator "TA"]
[PlyCount "80"]
[EventDate "2024.12.17"]
[EventType "swiss"]
[EventCountry "USA"]
[SourceTitle "playchess.com"]
[Source "ChessBase"]
[SourceQuality "1"]
[TimeMode "Bronstein"]
[TimeControl "1500+5"]

{[%evp 10,80,36,57,44,24,25,18,60,0,6,27,34,54,67,68,70,68,61,49,65,71,67,58,60,50,61,51,66,18,39,25,28,0,0,0,0,-22,-10,-29,-28,-38,-39,-111,-69,-68,-69,-146,-135,-172,-167,-191,-197,-200,-194,-204,-210,-206,-202,-571,-579,-500,-500,-1189,-1150,-1133,-1108,-29973,-29974,-29974,-29975,-29983,-29984]} 1. e4 {[%emt 0:00:05]} e5 {[%emt 0:00:05]} 2. Nf3 {[%emt 0:00:08]} Nc6 {[%emt 0:00:05]} 3. Bc4 {[%emt 0:00:06]} Nf6 {[%emt 0:00:06]} 4. d3 {[%emt 0:00:06]} Be7 {[%emt 0:00:30]} 5. O-O {[%emt 0:00:30]} O-O {[%emt 0:00:05]} 6. a4 {[%emt 0:00:05]} d6 {[%emt 0:02:05]} 7. a5 {[%emt 0:00:05]} a6 {[%emt 0:00:05]} 8. c3 {[%emt 0:00:05]} Kh8 {[%emt 0:00:05] The position is equal.} 9. Qb3 {[%emt 0:00:32]} (9. Nbd2 $14) 9... Qe8 $11 {[%emt 0:00:29]} 10. Re1 {[%emt 0:00:25]} Bg4 {[%emt 0:03:50][%cal Bc8g4,Bg4h5,Bh5g6][%mdl 32]} 11. Nbd2 {[%emt 0:01:53]} Nd7 {[%emt 0:00:43][%cal Bf6d7,Bd7c5,Bc5e6,Be6g5,Bg5f3][%mdl 32]} 12. h3 {[%emt 0:01:13]} (12. Qxb7 $2 Nc5 13. Qxc7 Rc8 $19) 12... Bh5 {[%emt 0:01:17]} 13. g4 {[%emt 0:01:08]} (13. Qxb7 $2 {too greedy.} Nc5 14. Qxc7 Rc8 $19) 13... Bg6 {[%emt 0:00:36]} 14. Nf1 {[%emt 0:00:11][%cal Of1g3]} (14. Qxb7 $2 Nc5 15. Qxc7 Rc8 $19) 14... Nc5 {[%emt 0:00:53]} 15. Qd1 {[%emt 0:00:44]} Qd8 {[%emt 0:00:35]} 16. Ng3 {[%emt 0:00:49]} Ne6 {[%emt 0:00:05]} 17. Nf5 {[%emt 0:02:43]} Ng5 $1 {[%emt 0:00:34]} 18. Kh2 {[%emt 0:01:54]} Bxf5 {[%emt 0:01:35]} 19. gxf5 {[%emt 0:00:12]} (19. exf5 $14 Rb8 20. Bd5) 19... Nxf3+ {[%emt 0:00:12]} 20. Qxf3 {[%emt 0:00:05]} Bg5 {[%emt 0:00:05]} 21. b4 {[%emt 0:02:42]} Bxc1 {[%emt 0:01:46]} 22. Raxc1 {[%emt 0:00:05]} Qf6 {[%emt 0:00:05]} 23. Rg1 {[%emt 0:02:29]} Ne7 {[%emt 0:00:35]} 24. Rg3 {[%emt 0:00:25]} g6 {[%emt 0:01:15]} 25. Rcg1 {[%emt 0:00:05]} c6 {[%emt 0:00:16][%cal Rg6f5]} 26. Qg4 {[%emt 0:01:36]} (26. Ba2 $15) 26... d5 {[%emt 0:01:08]} 27. Bb3 {[%emt 0:00:24]} gxf5 {[%emt 0:00:13]} 28. exf5 {[%emt 0:00:05]} ({White should play} 28. Qg5 $15 Qxg5 29. Rxg5) 28... Rg8 $1 $17 {[%emt 0:00:10]} (28... Nxf5 $2 {perishes.} 29. Rf3 $18) 29. Qh5 {[%emt 0:00:05]} Nxf5 {[%emt 0:03:37]} 30. Rxg8+ {[%emt 0:01:57]} Rxg8 {[%emt 0:00:05]} 31. Rxg8+ {[%emt 0:00:56]} Kxg8 $19 {[%emt 0:00:05][%cal Bh8g8,Bg8f8,Bf8e7][%mdl 4128] Endgame. KQB-KQN} 32. Qg4+ {[%emt 0:00:45]} Kf8 {[%emt 0:00:40]} 33. Bd1 {[%emt 0:00:10]} Ke7 {[%emt 0:00:17]} 34. f4 $2 {[%emt 0:01:49] [#]} (34. Kg1 {is more resistant.}) 34... Ne3 {[%emt 0:00:22][%csl LRf4,LRg4]} 35. Qf3 {[%emt 0:00:23]} exf4 {[%emt 0:00:54]} ({Weaker is} 35... Qxf4+ 36. Qxf4 exf4 37. Bf3 $17) 36. d4 {[%emt 0:00:05]} (36. Be2 $142) 36... Qh4 {[%emt 0:00:05][%cal Oh4g3] ...Qg3+! is the strong threat.} 37. Be2 {[%emt 0:00:21] [#]} h5 $1 {[%emt 0:00:08]} 38. c4 {[%emt 0:00:15]} (38. Bd3 Qe1) 38... dxc4 {[%emt 0:00:11] Black mates.} 39. b5 {[%emt 0:00:19]} axb5 {[%emt 0:00:05]} 40. a6 {[%emt 0:00:14]} bxa6 {[%emt 0:00:20] Weighted Error Value: White=0.52/Black=0.04 (flawless) .  Mistake:       	White=6     	---        Inaccurate:     	White=1     	Black=2      OK:         	White=7     	Black=18     Best:        	White=1     	Black=2      Strong:       	---       	Black=2} 0-1